bitfinex-derivatives/quotes_SOLF0:USTF0_20251122
["timestamp","ask_amount","ask_price","bid_price","bid_amount"]
[1763791623335,0.05159315,125.82,125.8,0.06006066]
[1763791624239,3.14159315,125.82,125.8,0.06006066]
[1763791624438,3.09,125.81,125.8,0.06006066]
[1763791625635,0.05159315,125.82,125.8,3.23006066]
[1763791625945,3.3,125.91,125.81,3.17]
[1763791626143,3.3,125.9,125.82,20.03]
[1763791626348,3.3,125.9,125.78,7.1604]
[1763791626349,3.3,125.87,125.79,3.17]
[1763791626644,7.1564,125.86,125.79,3.17]
[1763791626835,3.3,125.87,125.81,0.05379039]
[1763791626836,114.6123,125.87,125.81,0.05379039]
[1763791627034,3.36052423,125.84,125.81,0.05379039]
[1763791627440,0.06052423,125.84,125.81,3.22379039]
[1763791628143,3.3,125.91,125.82,3.17]
[1763791628441,3.3,125.9,125.82,3.17]
[1763791629146,0.05236682,125.87,125.85,3.22463947]
[1763791629833,0.05236682,125.87,125.85,0.05463947]
[1763791630037,0.05236682,125.87,125.85,3.22463947]
[1763791630434,0.05236682,125.87,125.85,20.10463947]
[1763791630742,3.3,125.91,125.86,3.17]
[1763791631140,134.07349829,125.95,125.86,3.17]
[1763791631141,3.3,125.94,125.86,3.17]
[1763791631344,3.3,125.93,125.86,3.17]
[1763791631847,3.3566938,125.91,125.88,0.05795475]
[1763791633241,3.3,125.9,125.88,0.05795475]
[1763791637151,3.3,125.89,125.83,9.17]
[1763791637454,3.3,125.89,125.83,3.17]
[1763791637647,5.94639829,125.92,125.83,3.17]
[1763791637954,3.3,125.92,125.83,3.17]
[1763791638152,3.3,125.88,125.86,0.05555282]
[1763791638453,3.3,125.87,125.86,0.05555282]
[1763791640252,0.05849005,125.89,125.86,3.22555282]
[1763791641950,10.4503,125.97,125.88,3.17]
[1763791642255,3.3,125.97,125.89,3.17]
[1763791642444,10.4501,125.97,125.89,3.17]
[1763791642644,3.3,125.97,125.89,3.17]
[1763791642856,0.05151163,125.94,125.92,0.05351782]
[1763791645150,0.05151163,125.94,125.92,3.22351782]
[1763791645454,3.35151163,125.94,125.92,0.05351782]
[1763791645652,3.3,125.93,125.92,0.05351782]
[1763791647160,7.1532,125.92,125.87,16.86]
[1763791647359,3.3,125.91,125.86,3.17]
[1763791647852,3.3,125.96,125.86,3.17]
[1763791648358,0.05721015,125.92,125.9,0.05118789]
[1763791648557,0.05721015,125.92,125.9,3.22118789]
[1763791650854,3.35721015,125.92,125.9,0.05118789]
[1763791653966,10.51011015,125.92,125.9,0.05118789]
[1763791654261,3.3,125.91,125.9,0.05118789]
[1763791655262,3.3,125.9,125.84,3.17]
[1763791655467,111.2593,125.93,125.85,3.17]
[1763791655468,3.3,125.93,125.85,3.17]
[1763791655965,7.1533,125.91,125.85,3.17]
[1763791656473,3.39057643,125.89,125.87,0.05453436]
[1763791657565,10.54507643,125.89,125.87,0.05453436]
[1763791657756,0.05057643,125.89,125.87,0.05453436]
[1763791658168,3.39057643,125.89,125.87,0.05453436]
[1763791659571,10.54507643,125.89,125.87,0.05453436]
[1763791660364,0.05057643,125.89,125.87,3.29453436]
[1763791660764,3.39057643,125.89,125.87,0.05453436]
[1763791661169,3.34,125.88,125.82,6.0]
[1763791661364,3.34,125.88,125.81,16.82]
[1763791661670,10.4957,125.87,125.81,16.82]
[1763791662062,3.34,125.87,125.81,16.82]
[1763791662264,3.39084817,125.85,125.83,0.05226436]
[1763791662980,0.05084817,125.85,125.83,3.29226436]
[1763791664070,3.34,125.93,125.84,3.24]
[1763791664276,5.93842653,125.92,125.84,3.24]
[1763791664475,3.34,125.93,125.84,3.24]
[1763791664674,5.94292924,125.92,125.86,3.24]
[1763791664971,3.34,125.96,125.88,3.24]
[1763791665167,0.05475428,125.93,125.91,0.05093082]
[1763791665770,3.39475428,125.93,125.91,0.05093082]
[1763791666378,3.34,125.92,125.91,0.05093082]
[1763791666975,7.1534,125.91,125.85,16.84]
[1763791667475,7.1534,125.91,125.85,20.08]
[1763791667971,0.05571075,125.89,125.87,0.05880143]
[1763791670367,3.39571075,125.89,125.87,0.05880143]
[1763791671583,0.05571075,125.89,125.87,3.29880143]
[1763791674076,0.05571075,125.89,125.87,0.05880143]
[1763791676379,0.05571075,125.89,125.88,3.24]
[1763791676580,3.34,125.94,125.88,3.24]
[1763791676888,3.34,125.94,125.9,3.24]
[1763791677587,0.05180557,125.93,125.91,0.05178792]
[1763791678086,3.39180557,125.93,125.91,0.05178792]
[1763791678390,3.34,125.92,125.84,20.06]
[1763791679277,7.1545,125.89,125.85,3.24]
[1763791679482,0.05359851,125.88,125.86,0.05655785]
[1763791680894,3.34,125.87,125.86,0.05655785]
[1763791681082,3.34,125.87,125.76,111.3998]
[1763791681083,114.6517,125.87,125.79,3.24]
[1763791681276,10.4986,125.82,125.76,3.24]
[1763791681481,3.34,125.81,125.73,3.24]
[1763791682089,3.34,125.79,125.73,3.24]
[1763791682290,3.34,125.77,125.76,0.06010319]
[1763791682479,3.34,125.77,125.72,16.82]
[1763791683492,3.34,125.77,125.73,0.05942467]
[1763791683694,3.34,125.75,125.73,0.05942467]
[1763791683892,3.39933112,125.75,125.73,0.05942467]
[1763791684381,10.56193112,125.75,125.73,0.05942467]
[1763791684583,3.34,125.74,125.73,0.05942467]
[1763791684985,3.34,125.7,125.67,16.82]
[1763791685188,3.34,125.69,125.61,3.24]
[1763791685393,3.1,125.67,125.58,98.57]
[1763791685694,3.1,125.67,125.59,16.84]
[1763791685886,0.05430565,125.64,125.62,0.0548012]
[1763791686292,0.05430565,125.64,125.62,3.3048012]
[1763791686487,3.1,125.7,125.62,3.3048012]
[1763791686794,3.1,125.73,125.62,3.25]
[1763791687595,9.781366,125.83,125.64,3.25]
[1763791687793,3.1,125.78,125.68,3.25]
[1763791687994,3.1,125.78,125.69,114.7158]
[1763791688190,0.05236019,125.74,125.73,3.25]
[1763791688390,3.1,125.82,125.74,3.25]
[1763791688985,3.1,125.82,125.65,111.4969]
[1763791689197,3.1,125.81,125.7,3.25]
[1763791689397,3.1583424,125.77,125.74,0.05821727]
[1763791691793,3.1,125.75,125.67,3.25]
[1763791692592,111.392,125.78,125.67,3.25]
[1763791692593,114.4904,125.78,125.67,3.25]
[1763791692796,3.1,125.77,125.67,3.25]
[1763791692995,0.05220689,125.74,125.71,0.05457367]
[1763791695105,0.05220689,125.74,125.71,3.30457367]
[1763791695898,3.15220689,125.74,125.71,0.05457367]
[1763791697698,3.1,125.73,125.71,0.05457367]
[1763791698304,0.05220689,125.74,125.71,0.05457367]
[1763791698505,3.15220689,125.74,125.71,0.05457367]
[1763791700810,3.1,125.73,125.71,0.05457367]
[1763791701708,3.1,125.72,125.71,0.05457367]
[1763791703606,3.1,125.7,125.61,3.25]
[1763791703914,3.1,125.7,125.62,20.11]
[1763791704105,7.1645,125.72,125.63,3.25]
[1763791704309,3.1,125.73,125.63,3.25]
[1763791704511,0.05330968,125.69,125.67,3.30094302]
[1763791704900,3.1,125.73,125.67,1.65094302]
[1763791705107,19.54914282,125.76,125.68,3.25]
[1763791705612,10.2626,125.75,125.68,3.25]
[1763791705913,3.1,125.75,125.68,3.25]
[1763791706212,3.16078202,125.73,125.7,0.05505184]
[1763791707208,3.1,125.76,125.7,0.05505184]
[1763791707415,114.51,125.76,125.7,0.05505184]
[1763791707615,3.1,125.74,125.7,0.05505184]
[1763791708205,3.1,125.72,125.55,1.3848266]
[1763791708512,3.1,125.56,125.47,3.25]
[1763791708711,3.1,125.55,125.47,3.25]
[1763791708911,3.1,125.54,125.47,3.25]
[1763791709116,3.1,125.53,125.44,3.25]
[1763791709309,0.05047189,125.5,125.47,0.05444573]
[1763791709511,0.05047189,125.5,125.48,3.25]
[1763791709806,111.5853,125.56,125.48,4.85]
[1763791710011,114.6768,125.57,125.48,3.25]
[1763791710211,114.6844,125.56,125.48,3.25]
[1763791710615,0.05756567,125.53,125.51,0.05432073]
[1763791711013,0.05756567,125.53,125.51,3.30432073]
[1763791712920,3.1,125.59,125.51,3.30432073]
[1763791713110,3.1,125.59,125.51,3.25]
[1763791713111,114.6594,125.59,125.51,3.25]
[1763791713312,3.1,125.59,125.51,3.25]
[1763791714010,0.05687486,125.56,125.54,3.30784537]
[1763791715211,10.2694,125.63,125.54,3.30784537]
[1763791715409,10.2694,125.63,125.55,3.25]
[1763791715410,3.1,125.63,125.55,3.25]
[1763791716318,0.06084807,125.6,125.58,0.05836596]
[1763791718112,0.06084807,125.6,125.58,3.16836596]
[1763791718520,0.06084807,125.6,125.58,0.05836596]
[1763791721418,3.15084807,125.6,125.58,0.05836596]
[1763791722818,10.32224807,125.6,125.58,0.05836596]
[1763791723019,3.09,125.59,125.58,0.05836596]
[1763791723820,3.09,125.58,125.55,17.04]
[1763791724023,3.09,125.57,125.49,17.04]
[1763791724218,3.09,125.57,125.5,3.11]
[1763791724713,0.05198547,125.55,125.52,0.05781668]
[1763791725921,3.14198547,125.55,125.52,0.05781668]
[1763791726313,10.2646,125.54,125.52,0.05781668]
[1763791726929,3.09,125.53,125.52,0.05781668]
[1763791727121,7.1746,125.54,125.52,0.05781668]
[1763791727321,3.14198547,125.55,125.52,0.05781668]
[1763791729522,3.09,125.54,125.52,0.05781668]
[1763791730326,10.2647,125.54,125.52,0.05781668]
[1763791730724,3.09,125.53,125.52,0.05781668]
[1763791731023,7.1747,125.54,125.49,17.04]
[1763791731024,10.2656,125.52,125.49,17.04]
[1763791731219,3.09,125.52,125.49,17.04]
[1763791732130,3.09,125.51,125.49,17.09209043]
[1763791732328,3.09,125.59,125.5,3.11]
[1763791732527,9.04321181,125.58,125.5,3.11]
[1763791732828,16.21561181,125.58,125.5,3.11]
[1763791733522,0.0565556,125.55,125.53,0.05074723]
[1763791733932,3.1465556,125.55,125.53,0.05074723]
[1763791735026,10.3205556,125.55,125.53,0.05074723]
[1763791735429,3.09,125.54,125.53,0.05074723]
[1763791735627,10.2648,125.54,125.49,20.15]
[1763791735830,3.09,125.54,125.49,20.15]
[1763791736024,3.09,125.54,125.49,17.04]
[1763791736221,7.1752,125.53,125.49,20.15]
[1763791736426,3.09,125.57,125.5,3.11]
[1763791736626,0.05230869,125.55,125.52,3.16891711]
[1763791737121,114.6326,125.61,125.53,3.11]
[1763791737322,3.09,125.6,125.53,3.11]
[1763791737626,114.6515,125.59,125.53,3.11]
[1763791737828,3.09,125.58,125.5,3.11]
[1763791738030,0.05400547,125.55,125.53,0.05502241]
[1763791739232,3.14400547,125.55,125.53,0.05502241]
[1763791740230,0.05400547,125.55,125.53,3.16502241]
[1763791740533,0.05400547,125.55,125.53,0.05502241]
[1763791741437,3.14400547,125.55,125.53,0.05502241]
[1763791742637,3.09,125.54,125.53,0.05502241]
[1763791745328,3.09,125.52,125.46,3.11]
[1763791745534,3.24,125.5,125.43,10.3305]
[1763791745835,3.24,125.53,125.45,3.15]
[1763791746239,10.4153,125.53,125.47,3.15]
[1763791746542,0.05528769,125.51,125.49,0.05767663]
[1763791747632,3.29528769,125.51,125.49,0.05767663]
[1763791748536,114.8802,125.5,125.44,3.15]
[1763791749340,7.1786,125.47,125.41,3.15]
[1763791749538,0.05707537,125.45,125.43,0.05256262]
[1763791750738,0.05707537,125.45,125.43,3.20256262]
[1763791752534,0.05707537,125.45,125.43,0.05256262]
[1763791752737,3.29707537,125.45,125.43,0.05256262]
[1763791752941,0.05707537,125.45,125.43,0.05256262]
[1763791753338,3.29707537,125.45,125.43,0.05256262]
[1763791754249,0.05707537,125.45,125.43,0.05256262]
[1763791755243,10.47677537,125.45,125.43,0.05256262]
[1763791755446,3.24,125.44,125.39,20.17]
[1763791755946,3.24,125.44,125.4,3.15]
[1763791756543,3.29707537,125.45,125.41,3.20224879]
[1763791758947,3.24,125.44,125.41,0.05224879]
[1763791762352,3.24,125.42,125.41,0.05224879]
[1763791763443,3.29707537,125.45,125.41,0.05224879]
[1763791764464,3.24,125.43,125.41,0.05224879]
[1763791765541,10.4208,125.43,125.41,0.05224879]
[1763791765743,3.24,125.42,125.41,0.05224879]
[1763791767251,3.24,125.44,125.41,0.05224879]
[1763791767442,13.19028718,125.45,125.41,3.20224879]
[1763791767443,3.29707537,125.45,125.41,3.20224879]
[1763791768554,0.05707537,125.45,125.41,3.20224879]
[1763791769640,3.29707537,125.45,125.41,3.20224879]
[1763791769839,3.29707537,125.45,125.41,0.05224879]
[1763791770754,10.47687537,125.45,125.41,0.05224879]
[1763791770946,3.24,125.44,125.41,0.05224879]
[1763791771651,10.4202,125.44,125.41,0.05224879]
[1763791771844,3.24,125.43,125.41,0.05224879]
[1763791773449,10.4207,125.43,125.41,0.05224879]
[1763791775357,3.24,125.4,125.39,17.02]
[1763791775654,3.24,125.4,125.32,3.31]
[1763791776054,3.04,125.39,125.32,3.31]
[1763791776447,0.05648158,125.37,125.34,3.26502259]
[1763791776847,3.04,125.43,125.36,3.21]
[1763791777052,10.2193,125.46,125.38,3.21]
[1763791777347,3.04,125.45,125.38,3.21]
[1763791777545,3.04,125.44,125.37,16.98]
[1763791777946,3.04,125.41,125.39,0.05514569]
[1763791779656,3.04,125.4,125.39,0.05514569]
[1763791779853,114.7789,125.39,125.32,3.21]
[1763791780058,3.04,125.37,125.32,3.21]
[1763791780364,3.04,125.36,125.3,16.98]
[1763791780855,3.09936488,125.34,125.32,0.05608139]
[1763791781743,10.28546488,125.34,125.32,0.05608139]
[1763791781960,3.04,125.33,125.32,0.05608139]
[1763791782153,3.04,125.33,125.28,3.21]
[1763791782355,0.05936488,125.34,125.27,3.21]
[1763791782551,3.04,125.36,125.28,3.21]
[1763791783259,3.04,125.36,125.29,3.21]
[1763791783456,0.05136993,125.34,125.31,3.26199901]
[1763791783961,0.05136993,125.34,125.33,3.21]
[1763791784161,3.04,125.4,125.33,3.21]
[1763791785165,3.09046791,125.38,125.35,0.0532565]
[1763791788150,3.09046791,125.38,125.35,3.2632565]
[1763791788151,0.05046791,125.38,125.35,3.2632565]
[1763791790955,3.09046791,125.38,125.35,0.0532565]
[1763791791155,0.05046791,125.38,125.35,3.2632565]
[1763791791558,3.09046791,125.38,125.35,0.0532565]
[1763791792554,3.04,125.36,125.35,0.0532565]
[1763791792754,3.04,125.35,125.32,17.0]
[1763791793362,3.04,125.34,125.32,17.0]
[1763791793754,3.10080636,125.34,125.32,17.05179153]
[1763791795263,10.28700636,125.34,125.32,0.05179153]
[1763791796566,3.10080636,125.34,125.32,0.05179153]
[1763791798460,0.06080636,125.34,125.32,0.05179153]
[1763791798768,0.06080636,125.34,125.32,3.26179153]
[1763791799862,10.2222,125.41,125.34,3.21]
[1763791800266,10.2222,125.41,125.33,16.96]
[1763791800267,3.04,125.39,125.33,16.96]
[1763791800867,3.09579931,125.37,125.35,0.05467727]
[1763791803370,0.05579931,125.37,125.35,3.26467727]
[1763791803762,3.04,125.44,125.35,3.26467727]
[1763791804065,3.04,125.43,125.36,3.21]
[1763791804877,0.06052913,125.41,125.38,0.05069192]
[1763791806179,3.22052913,125.41,125.38,0.05069192]
[1763791806466,0.06052913,125.41,125.38,3.16069192]
[1763791807566,3.22052913,125.41,125.38,0.05069192]
[1763791808154,0.06052913,125.41,125.38,3.16069192]
[1763791809961,3.22052913,125.41,125.38,0.05069192]
[1763791810763,0.06052913,125.41,125.39,3.11]
[1763791811867,0.06052913,125.41,125.4,3.11]
[1763791812060,0.06052913,125.41,125.39,16.96]
[1763791812265,0.06052913,125.41,125.39,20.07]
[1763791813369,3.22052913,125.41,125.39,16.96]
[1763791814369,0.06052913,125.41,125.39,16.96]
[1763791814673,0.06052913,125.41,125.39,20.07]
[1763791815466,3.22052913,125.41,125.39,16.96]
[1763791817376,0.06052913,125.41,125.39,20.07]
[1763791819081,0.06052913,125.41,125.4,3.11]
[1763791819270,3.16,125.47,125.4,3.11]
[1763791819572,3.16,125.47,125.39,16.96]
[1763791819573,3.16,125.5,125.42,3.11]
[1763791820168,7.1779,125.48,125.42,3.11]
[1763791820371,0.05198079,125.47,125.45,0.05613561]
[1763791821975,3.16,125.52,125.45,3.16613561]
[1763791822276,3.16,125.51,125.45,20.10613561]
[1763791822577,3.16,125.46,125.45,0.05613561]
[1763791825577,3.16,125.44,125.4,16.96]
[1763791826088,10.3408,125.43,125.38,3.11]
[1763791826780,0.05036823,125.42,125.39,3.16667661]
[1763791827680,10.39186823,125.42,125.39,0.05667661]
[1763791827883,3.21036823,125.42,125.39,0.05667661]
[1763791828181,0.05036823,125.42,125.39,3.16667661]
[1763791829275,3.21036823,125.42,125.39,0.05667661]
[1763791829785,10.39176823,125.42,125.39,0.05667661]
[1763791830081,3.16,125.41,125.39,0.05667661]
[1763791831385,10.3419,125.41,125.39,0.05667661]
[1763791832483,3.16,125.4,125.39,0.05667661]
[1763791833080,0.05036823,125.42,125.39,3.16667661]
[1763791833675,3.21036823,125.42,125.39,3.16667661]
[1763791834790,3.21036823,125.42,125.39,0.05667661]
[1763791836685,3.08,125.41,125.39,0.05667661]
[1763791836886,3.08,125.39,125.34,3.27]
[1763791837889,3.13789013,125.38,125.35,0.05100684]
[1763791838192,10.32159013,125.38,125.35,0.05100684]
[1763791838888,3.08,125.36,125.35,0.05100684]
[1763791841391,0.05789013,125.38,125.35,3.32100684]
[1763791842087,3.13789013,125.38,125.35,0.05100684]
[1763791842288,3.08,125.36,125.32,3.27]
[1763791842594,3.08,125.36,125.29,20.21]
[1763791843288,3.08,125.36,125.31,0.06051616]
[1763791843586,3.13418415,125.34,125.31,0.06051616]
[1763791844290,3.08,125.32,125.31,0.06051616]
[1763791849498,0.05418415,125.34,125.31,3.33051616]
[1763791849993,3.13418415,125.34,125.31,0.06051616]
[1763791850193,3.08,125.33,125.31,0.06051616]
[1763791851696,10.2666,125.33,125.31,0.06051616]
[1763791853487,3.08,125.33,125.31,0.06051616]
[1763791853696,0.05418415,125.34,125.31,3.33051616]
[1763791854508,3.08,125.39,125.31,3.33051616]
[1763791854509,5.23274548,125.39,125.33,3.27]
[1763791855606,0.05760859,125.37,125.35,3.32873904]
[1763791856507,2.15274548,125.41,125.35,3.32873904]
[1763791856905,3.08,125.42,125.35,3.32873904]
[1763791857607,0.05131912,125.4,125.35,10.51393904]
[1763791858003,0.05131912,125.4,125.36,3.27]
[1763791858210,3.13131912,125.4,125.35,0.05873904]
[1763791858402,3.13131912,125.4,125.35,3.32873904]
[1763791858602,0.05131912,125.4,125.35,3.32873904]
[1763791860206,0.05131912,125.4,125.36,3.27]
[1763791860599,3.08,125.49,125.39,3.27]
[1763791860813,3.08,125.49,125.41,3.27]
[1763791861199,3.08,125.52,125.45,3.27]
[1763791861396,5.97169366,125.53,125.47,3.27]
[1763791861613,3.08,125.53,125.47,3.27]
[1763791861909,0.05151685,125.51,125.49,0.05617238]
[1763791862512,0.05151685,125.51,125.49,3.32617238]
[1763791864803,3.13151685,125.51,125.49,0.05617238]
[1763791866513,0.05151685,125.51,125.49,0.05617238]
[1763791866714,3.17151685,125.51,125.49,0.05617238]
[1763791867314,0.05151685,125.51,125.49,3.24617238]
[1763791869318,3.17151685,125.51,125.49,0.05617238]
[1763791870322,0.05151685,125.51,125.49,0.05617238]
[1763791870815,3.12,125.5,125.49,0.05617238]
[1763791871015,0.05151685,125.51,125.49,0.05617238]
[1763791871214,3.17151685,125.51,125.49,0.05617238]
[1763791872518,0.05151685,125.51,125.49,0.05617238]
[1763791872716,3.17151685,125.51,125.49,0.05617238]
[1763791873107,0.05151685,125.51,125.49,0.05617238]
[1763791873310,0.05151685,125.51,125.49,3.24617238]
[1763791873614,3.12,125.57,125.49,3.24617238]
[1763791873819,3.12,125.56,125.49,3.19]
[1763791874015,3.12,125.54,125.46,3.19]
[1763791874321,3.12,125.51,125.46,16.92]
[1763791874522,3.12,125.5,125.46,16.92]
[1763791874812,0.05699582,125.49,125.47,0.06048623]
[1763791876114,3.17699582,125.49,125.47,0.06048623]
[1763791877220,0.05699582,125.49,125.47,3.25048623]
[1763791878115,13.14639366,125.54,125.47,3.25048623]
[1763791878317,3.12,125.55,125.47,3.25048623]
[1763791878512,3.12,125.55,125.47,3.19]
[1763791879216,0.05249192,125.52,125.5,0.0595952]
[1763791879920,0.05249192,125.52,125.5,3.2495952]
[1763791880313,3.17249192,125.52,125.5,0.0595952]
[1763791881618,0.05249192,125.52,125.5,3.2495952]
[1763791885034,16.26409366,125.58,125.5,3.2495952]
[1763791885035,16.26409366,125.58,125.51,3.19]
[1763791885318,16.26409366,125.58,125.52,20.11]
[1763791885724,3.12,125.56,125.52,16.92]
[1763791885920,0.05410938,125.55,125.53,0.05255114]
[1763791887619,0.05410938,125.55,125.53,3.24255114]
[1763791888024,3.17410938,125.55,125.53,0.05255114]
[1763791889021,3.12,125.54,125.53,0.05255114]
[1763791891129,7.22810938,125.55,125.53,0.05255114]
[1763791891320,10.34810938,125.55,125.53,0.05255114]
[1763791892019,3.12,125.54,125.53,0.05255114]
[1763791894028,0.05410938,125.55,125.53,3.24255114]
[1763791894221,3.12,125.6,125.53,3.24255114]
[1763791894424,3.12,125.6,125.53,3.19]
[1763791895229,3.12,125.6,125.54,20.09]
[1763791895532,0.05175028,125.58,125.56,3.21514502]
[1763791901035,3.11,125.65,125.57,3.24]
[1763791902127,0.05896137,125.62,125.61,3.24]
[1763791903136,9.00897502,125.68,125.61,3.24]
[1763791903331,3.11,125.68,125.61,3.24]
[1763791903940,10.2766,125.68,125.61,3.24]
[1763791904235,0.055807,125.66,125.63,0.05567351]
[1763791904627,0.055807,125.66,125.63,3.29567351]
[1763791907140,10.2753,125.7,125.63,3.29567351]
[1763791907141,3.11,125.7,125.63,3.29567351]
[1763791907440,3.11,125.73,125.65,3.24]
[1763791907627,3.11,125.73,125.67,3.24]
[1763791908237,0.05283963,125.71,125.69,0.05255041]
[1763791909234,3.16283963,125.71,125.69,0.05255041]
[1763791909629,10.32773963,125.71,125.69,0.05255041]
[1763791909828,3.11,125.7,125.69,0.05255041]
[1763791910638,3.16283963,125.71,125.69,0.05255041]
[1763791910832,0.05283963,125.71,125.69,0.05255041]
[1763791911142,0.05283963,125.71,125.69,3.29255041]
[1763791912536,111.4018,125.77,125.69,3.29255041]
[1763791912537,10.2716,125.77,125.69,3.29255041]
[1763791912745,3.11,125.77,125.69,3.24]
[1763791913243,3.11,125.77,125.71,3.24]
[1763791913444,3.11,125.77,125.72,20.12]
[1763791913643,0.05281715,125.75,125.72,20.1711485]
[1763791914140,3.16281715,125.75,125.72,16.9311485]
[1763791914733,3.16281715,125.75,125.72,20.1711485]
[1763791914734,0.05281715,125.75,125.72,20.1711485]
[1763791915129,3.16281715,125.75,125.72,20.1711485]
[1763791916246,0.05281715,125.75,125.73,3.24]
[1763791916646,3.11,125.82,125.73,3.24]
[1763791916946,3.11,125.81,125.73,3.24]
[1763791917539,10.2692,125.81,125.74,3.24]
[1763791917746,3.11,125.8,125.76,0.05962917]
[1763791917950,3.11,125.81,125.76,3.29962917]
[1763791919235,3.11,125.8,125.76,0.05962917]
[1763791920243,111.3489,125.83,125.76,3.29962917]
[1763791920548,3.11,125.83,125.76,3.29962917]
[1763791920744,3.11,125.86,125.77,3.24]
[1763791920942,3.11,125.86,125.8,3.29506804]
[1763791921139,3.11,125.86,125.8,20.15506804]
[1763791921340,120.6028271,125.91,125.81,3.24]
[1763791921642,114.4055,125.89,125.85,0.05042306]
[1763791921847,3.11,125.84,125.8,15.84]
[1763791922935,0.05568867,125.83,125.81,3.29269339]
[1763791923139,3.11,125.9,125.81,3.29269339]
[1763791923340,7.1552,125.88,125.81,3.24]
[1763791923646,3.11,125.87,125.81,3.24]
[1763791923841,3.11,125.87,125.8,16.86]
[1763791924239,3.11,125.85,125.82,0.05297429]
[1763791924650,3.11,125.83,125.77,16.86]
[1763791924947,7.157,125.85,125.78,3.24]
[1763791925140,3.11,125.85,125.78,3.24]
[1763791925343,3.11,125.82,125.78,16.86]
[1763791925542,0.05775207,125.81,125.79,0.05493731]
[1763791926441,3.23775207,125.81,125.79,0.05493731]
[1763791927245,0.05775207,125.81,125.79,3.14493731]
[1763791927545,0.05775207,125.81,125.79,0.05493731]
[1763791928442,0.05775207,125.81,125.79,3.14493731]
[1763791928945,3.18,125.85,125.79,3.14493731]
[1763791929651,10.3369,125.85,125.79,3.14493731]
[1763791930140,3.18,125.83,125.79,0.05493731]
[1763791930347,3.18,125.81,125.79,0.05493731]
[1763791931147,10.3391,125.81,125.79,0.05493731]
[1763791931349,3.18,125.8,125.79,0.05493731]
[1763791936444,3.18,125.78,125.71,10.2543]
[1763791936746,3.18,125.82,125.73,3.09]
[1763791936944,3.18,125.82,125.76,10.2516]
[1763791937146,3.18,125.82,125.77,3.09]
[1763791937345,3.18,125.82,125.72,3.09]
[1763791937544,111.3307,125.85,125.78,0.05820758]
[1763791937545,3.18,125.8,125.78,0.05820758]
[1763791937851,0.05240163,125.8,125.78,0.05820758]
[1763791938048,3.23240163,125.8,125.78,0.05820758]
[1763791938945,3.23240163,125.8,125.72,3.09]
[1763791939152,3.18,125.79,125.72,3.09]
[1763791939845,0.05079249,125.77,125.72,3.09]
[1763791940046,0.05079249,125.77,125.74,3.14267248]
[1763791940448,3.23079249,125.77,125.74,0.05267248]
[1763791941551,0.05079249,125.77,125.74,3.14267248]
[1763791942044,0.05079249,125.77,125.75,3.09]
[1763791942442,3.18,125.83,125.75,3.09]
[1763791942742,10.3383,125.83,125.76,3.09]
[1763791942956,10.3383,125.83,125.77,19.97]
[1763791943546,0.05577595,125.81,125.79,0.05943469]
[1763791944146,3.23577595,125.81,125.79,0.05943469]
[1763791944854,10.39487595,125.81,125.79,0.05943469]
[1763791946642,0.05577595,125.81,125.79,3.14943469]
[1763791946946,0.05577595,125.81,125.79,0.05943469]
[1763791947448,3.23577595,125.81,125.79,0.05943469]
[1763791947653,0.05577595,125.81,125.79,0.05943469]
[1763791948242,3.23577595,125.81,125.79,0.05943469]
[1763791950357,3.23577595,125.81,125.77,16.88]
[1763791950358,3.18,125.8,125.73,3.09]
[1763791950564,3.18,125.8,125.73,19.97]
[1763791950859,3.18,125.75,125.73,16.88]
[1763791951450,3.18,125.77,125.73,19.97]